[Event "Elegant 1st Division League 2024"]
[Site "Dhaka"]
[Date "2024.07.17"]
[Round "7.7"]
[White "Majumder Shrayan"]
[Black "Tutul, Dhar"]
[Result "1-0"]
[Annotator "RC"]
[ECO "B10"]
[WhiteElo "2083"]
[BlackElo "2008"]
[PlyCount "131"]
[EventDate "2024.07.10"]
[EventType "team-tourn"]
[EventCountry "BAN"]
[SourceTitle "playchess.com"]
[Source "ChessBase"]
[SourceQuality "1"]
[TimeControl "5400+30"]

1. e4 {[%emt 0:00:36]} c6 {[%emt 0:00:06]} 2. Nf3 {[%emt 0:00:31]} d5 {[%emt 0:00:11]} 3. exd5 {[%emt 0:00:08]} cxd5 {[%emt 0:00:03]} 4. Ne5 {[%emt 0:00:37]} Nf6 {[%emt 0:01:49]} 5. d4 {[%emt 0:00:11]} g6 {[%emt 0:03:17]} 6. Bb5+ {[%emt 0:00:32]} Bd7 {[%emt 0:00:17]} 7. Nxd7 {[%emt 0:01:04]} Nbxd7 {[%emt 0:00:05]} 8. O-O {[%emt 0:00:20]} Bg7 {[%emt 0:00:02]} 9. Re1 {[%emt 0:00:54]} O-O {[%emt 0:00:08]} 10. c3 {[%emt 0:01:05]} e6 {[%emt 0:01:31]} 11. Bd3 {[%emt 0:08:47]} Qc7 {[%emt 0:02:22]} 12. Bg5 {[%emt 0:02:41]} Rfe8 {[%emt 0:01:02]} 13. Nd2 {[%emt 0:00:54]} Rac8 {[%emt 0:00:30]} 14. Nf3 {[%emt 0:02:33]} Rb8 {[%emt 0:05:18]} 15. Qd2 {[%emt 0:01:51]} Rbc8 {[%emt 0:00:55]} 16. Rac1 {[%emt 0:08:18]} Qa5 {[%emt 0:01:27]} 17. b3 {[%emt 0:00:49]} b5 {[%emt 0:01:43]} 18. Qe2 {[%emt 0:17:10]} a6 {[%emt 0:18:34]} 19. a4 {[%emt 0:10:10]} Ne4 {[%emt 0:16:22]} 20. b4 {[%emt 0:11:41]} Qb6 {[%emt 0:09:11]} 21. a5 {[%emt 0:14:34]} Qb7 {[%emt 0:00:11]} 22. Bxe4 {[%emt 0:00:53]} dxe4 {[%emt 0:00:01]} 23. Qxe4 {[%emt 0:05:19]} Qxe4 {[%emt 0:00:07]} 24. Rxe4 {[%emt 0:00:05]} h6 {[%emt 0:00:05]} 25. Bd2 {[%emt 0:01:18]} Nf6 {[%emt 0:00:08]} 26. Re2 {[%emt 0:00:11]} Nd5 {[%emt 0:01:23]} 27. Ne5 {[%emt 0:00:33]} Bxe5 {[%emt 0:00:25]} 28. Rxe5 {[%emt 0:00:08]} Kg7 {[%emt 0:00:29]} 29. Kf1 {[%emt 0:04:54]} Rc6 {[%emt 0:02:02]} 30. Ke2 {[%emt 0:02:15]} Rec8 {[%emt 0:02:06]} 31. Kd3 {[%emt 0:00:13]} g5 {[%emt 0:11:21]} 32. h4 {[%emt 0:01:17]} f6 {[%emt 0:00:22]} 33. Ree1 {[%emt 0:00:28]} Kg6 {[%emt 0:04:43]} 34. hxg5 {[%emt 0:00:42]} hxg5 {[%emt 0:01:05]} 35. f3 {[%emt 0:01:27]} f5 {[%emt 0:03:16]} 36. g3 {[%emt 0:00:27]} R8c7 {[%emt 0:01:04]} 37. Re5 {[%emt 0:01:25]} Kf6 {[%emt 0:02:14]} 38. Rh1 {[%emt 0:00:24]} Kg6 {[%emt 0:05:25]} 39. g4 {[%emt 0:01:24]} Nf4+ {[%emt 0:03:15]} 40. Kc2 {[%emt 0:00:49]} fxg4 {[%emt 0:02:04]} 41. fxg4 {[%emt 0:00:02]} Rd7 {[%emt 0:01:07]} 42. Bxf4 {[%emt 0:01:00]} gxf4 {[%emt 0:00:10]} 43. g5 {[%emt 0:00:37]} Rxd4 {[%emt 0:01:42]} 44. Rh6+ {[%emt 0:00:12]} Kg7 {[%emt 0:00:06]} 45. Rexe6 {[%emt 0:00:41]} Rxe6 {[%emt 0:00:06]} 46. Rxe6 {[%emt 0:00:02]} Rd5 {[%emt 0:01:24]} 47. Rf6 {[%emt 0:00:22]} Rxg5 {[%emt 0:00:27]} 48. Rxf4 {[%emt 0:00:06]} Re5 {[%emt 0:01:05]} 49. Kd3 {[%emt 0:00:12]} Kg6 {[%emt 0:01:31]} 50. Kd4 {[%emt 0:00:22]} Rh5 {[%emt 0:00:35]} 51. c4 {[%emt 0:00:35]} bxc4 {[%emt 0:00:03]} 52. Kxc4 {[%emt 0:00:08]} Kg7 {[%emt 0:00:27]} 53. Rd4 {[%emt 0:00:23]} Rh6 {[%emt 0:00:42]} 54. Rd7+ {[%emt 0:00:18]} Kf8 {[%emt 0:00:00]} 55. Kc5 {[%emt 0:01:52]} Ke8 {[%emt 0:00:08]} 56. Rd6 {[%emt 0:00:44]} Rh5+ {[%emt 0:00:04]} 57. Kb6 {[%emt 0:00:59]} Rb5+ {[%emt 0:00:09]} 58. Kxa6 {[%emt 0:00:05]} Rxb4 {[%emt 0:00:02]} 59. Rb6 {[%emt 0:00:41]} Rh4 {[%emt 0:01:22]} 60. Kb7 {[%emt 0:00:15]} Rh7+ {[%emt 0:00:28]} 61. Kb8 {[%emt 0:00:06]} Rd7 {[%emt 0:01:41]} 62. Rc6 {[%emt 0:01:15]} Rd5 {[%emt 0:00:36]} 63. a6 {[%emt 0:00:16]} Kd7 {[%emt 0:00:44]} 64. Rc7+ {[%emt 0:00:28]} Kd6 {[%emt 0:00:00]} 65. a7 {[%emt 0:00:22]} Ra5 {[%emt 0:00:45]} 66. Rb7 {[%emt 0:00:15]} 1-0

[Event "Elegant 1st Division League 2024"]
[Site "Dhaka"]
[Date "2024.07.17"]
[Round "7.8"]
[White "Dakshita Kumawat"]
[Black "Md, Azmaeen Parvez Sayor"]
[Result "1-0"]
[Annotator "RC"]
[ECO "A80"]
[WhiteElo "1928"]
[BlackElo "1969"]
[PlyCount "139"]
[EventDate "2024.07.10"]
[EventType "team-tourn"]
[EventCountry "BAN"]
[SourceTitle "playchess.com"]
[Source "ChessBase"]
[SourceQuality "1"]
[TimeControl "5400+30"]

1. d4 {[%emt 0:00:55]} f5 {[%emt 0:00:56]} 2. Bf4 {[%emt 0:00:06]} Nf6 {[%emt 0:00:06]} 3. e3 {[%emt 0:00:03]} d6 {[%emt 0:00:44]} 4. Nc3 {[%emt 0:01:20]} c6 {[%emt 0:03:12]} 5. Bd3 {[%emt 0:01:43]} Qc7 {[%emt 0:03:08]} 6. Qf3 {[%emt 0:09:32]} g6 {[%emt 0:03:54]} 7. h4 {[%emt 0:02:14]} e5 {[%emt 0:01:57]} 8. dxe5 {[%emt 0:00:29]} dxe5 {[%emt 0:00:10]} 9. Bg3 {[%emt 0:06:02]} Bd6 {[%emt 0:03:45]} 10. O-O-O {[%emt 0:07:25]} Nh5 {[%emt 0:11:39]} 11. Bc4 {[%emt 0:07:40]} Nd7 {[%emt 0:02:44]} 12. Bh2 {[%emt 0:06:38]} Ndf6 {[%emt 0:05:18]} 13. Nh3 {[%emt 0:16:26]} h6 {[%emt 0:03:39]} 14. Qe2 {[%emt 0:01:45]} Qe7 {[%emt 0:02:55]} 15. f3 {[%emt 0:08:00]} Bd7 {[%emt 0:02:28]} 16. Bb3 {[%emt 0:04:53]} O-O-O {[%emt 0:06:07]} 17. Qc4 {[%emt 0:00:38]} Bc7 {[%emt 0:03:38]} 18. a4 {[%emt 0:05:35]} Ng7 {[%emt 0:03:25]} 19. Qf7 {[%emt 0:02:40]} Qxf7 {[%emt 0:01:51]} 20. Bxf7 {[%emt 0:00:01]} Be8 {[%emt 0:00:29]} 21. Ba2 {[%emt 0:03:59]} Bd7 {[%emt 0:04:56]} 22. Nf2 {[%emt 0:00:55]} g5 {[%emt 0:04:56]} 23. Nd3 {[%emt 0:04:59]} f4 {[%emt 0:05:12]} 24. exf4 {[%emt 0:00:49]} exf4 {[%emt 0:06:11]} 25. Bg1 {[%emt 0:01:35]} Nf5 {[%emt 0:07:05]} 26. Bf2 {[%emt 0:02:16]} b6 {[%emt 0:01:01]} 27. Rde1 {[%emt 0:01:33]} Rde8 {[%emt 0:01:34]} 28. Ne4 {[%emt 0:01:32]} Nxe4 {[%emt 0:01:48]} 29. fxe4 {[%emt 0:00:06]} Ng3 {[%emt 0:02:09]} 30. Bxg3 {[%emt 0:00:32]} fxg3 {[%emt 0:00:02]} 31. e5 {[%emt 0:02:08]} Bf5 {[%emt 0:01:48]} 32. e6 {[%emt 0:00:27]} Bxd3 {[%emt 0:01:30]} 33. cxd3 {[%emt 0:00:01]} Bf4+ {[%emt 0:00:14]} 34. Kc2 {[%emt 0:00:12]} Re7 {[%emt 0:01:35]} 35. hxg5 {[%emt 0:00:56]} Bxg5 {[%emt 0:00:20]} 36. Ref1 {[%emt 0:00:03]} Rg7 {[%emt 0:02:59]} 37. Rf3 {[%emt 0:00:45]} Be7 {[%emt 0:00:39]} 38. Rh5 {[%emt 0:00:02]} Kd8 {[%emt 0:00:54]} 39. d4 {[%emt 0:00:20]} Rg5 {[%emt 0:00:31]} 40. Rh3 {[%emt 0:00:20]} Rf8 {[%emt 0:00:30]} 41. Rfxg3 {[%emt 0:02:16]} Rf2+ {[%emt 0:00:35]} 42. Kc3 {[%emt 0:00:01]} Rxg2 {[%emt 0:00:35]} 43. Rxg2 {[%emt 0:00:21]} Rxg2 {[%emt 0:00:05]} 44. Rxh6 {[%emt 0:00:21]} Rg3+ {[%emt 0:00:02]} 45. Kc2 {[%emt 0:00:59]} Rg2+ {[%emt 0:00:44]} 46. Kc3 {[%emt 0:00:45]} Rg8 {[%emt 0:00:48]} 47. Bc4 {[%emt 0:00:36]} Rg3+ {[%emt 0:00:09]} 48. Bd3 {[%emt 0:00:22]} Rg8 {[%emt 0:01:29]} 49. Bf5 {[%emt 0:00:45]} Kc7 {[%emt 0:00:17]} 50. Rh3 {[%emt 0:00:47]} Rf8 {[%emt 0:00:22]} 51. Bg6 {[%emt 0:00:13]} Kd6 {[%emt 0:00:55]} 52. Bf7 {[%emt 0:00:06]} a5 {[%emt 0:00:35]} 53. Rh5 {[%emt 0:00:24]} Rb8 {[%emt 0:00:30]} 54. Kc4 {[%emt 0:00:31]} Rc8 {[%emt 0:00:29]} 55. Rh2 {[%emt 0:00:50]} Rb8 {[%emt 0:00:16]} 56. Rh5 {[%emt 0:00:16]} Rc8 {[%emt 0:00:24]} 57. Rh7 {[%emt 0:00:39]} Rb8 {[%emt 0:00:14]} 58. Rh3 {[%emt 0:00:48]} b5+ {[%emt 0:00:24]} 59. axb5 {[%emt 0:00:04]} cxb5+ {[%emt 0:00:37]} 60. Kd3 {[%emt 0:00:05]} Rc8 {[%emt 0:00:49]} 61. Rh5 {[%emt 0:00:05]} Kc6 {[%emt 0:00:55]} 62. Rf5 {[%emt 0:01:00]} a4 {[%emt 0:00:27]} 63. Bh5 {[%emt 0:00:11]} Rg8 {[%emt 0:00:25]} 64. Bf3+ {[%emt 0:00:15]} Kb6 {[%emt 0:00:57]} 65. Rf7 {[%emt 0:01:07]} a3 {[%emt 0:00:42]} 66. bxa3 {[%emt 0:00:07]} Bxa3 {[%emt 0:00:06]} 67. Rb7+ {[%emt 0:00:11]} Ka6 {[%emt 0:00:28]} 68. Bc6 {[%emt 0:00:52]} b4 {[%emt 0:01:15]} 69. Kc4 {[%emt 0:01:03]} Rc8 {[%emt 0:00:14]} 70. d5 {[%emt 0:00:12]} 1-0

[Event "Elegant 1st Division League 2024"]
[Site "Dhaka"]
[Date "2024.07.17"]
[Round "7.10"]
[White "abzid, Rahman"]
[Black "Soumyajit Das"]
[Result "1-0"]
[Annotator "RC"]
[ECO "A80"]
[WhiteElo "2037"]
[BlackElo "1850"]
[PlyCount "175"]
[EventDate "2024.07.10"]
[EventType "team-tourn"]
[EventCountry "BAN"]
[SourceTitle "playchess.com"]
[Source "ChessBase"]
[SourceQuality "1"]
[TimeControl "5400+30"]

1. d4 {[%emt 0:00:03]} f5 {[%emt 0:00:19]} 2. Nf3 {[%emt 0:00:25]} Nf6 {[%emt 0:00:41]} 3. e3 {[%emt 0:00:25]} g6 {[%emt 0:00:31]} 4. b3 {[%emt 0:00:24]} Bg7 {[%emt 0:00:31]} 5. Bb2 {[%emt 0:00:14]} d6 {[%emt 0:02:21]} 6. Bc4 {[%emt 0:01:00]} e6 {[%emt 0:00:57]} 7. O-O {[%emt 0:00:25]} O-O {[%emt 0:01:34]} 8. a4 {[%emt 0:00:31]} Ne4 {[%emt 0:13:42]} 9. Nbd2 {[%emt 0:02:01]} c5 {[%emt 0:01:56]} 10. c3 {[%emt 0:03:38]} Nc6 {[%emt 0:22:49]} 11. Nxe4 {[%emt 0:06:02]} fxe4 {[%emt 0:00:47]} 12. Nd2 {[%emt 0:00:19]} cxd4 {[%emt 0:03:37]} 13. cxd4 {[%emt 0:00:31]} a6 {[%emt 0:13:38]} 14. Ba3 {[%emt 0:04:26]} Re8 {[%emt 0:12:35]} 15. b4 {[%emt 0:02:44]} d5 {[%emt 0:02:39]} 16. Bb3 {[%emt 0:01:09]} Bf8 {[%emt 0:01:30]} 17. b5 {[%emt 0:00:21]} Bxa3 {[%emt 0:02:25]} 18. bxc6 {[%emt 0:00:22]} Bd6 {[%emt 0:01:39]} 19. cxb7 {[%emt 0:00:52]} Bxb7 {[%emt 0:00:06]} 20. Rb1 {[%emt 0:00:56]} a5 {[%emt 0:01:04]} 21. Bc4 {[%emt 0:01:04]} Bc6 {[%emt 0:08:49]} 22. Bb5 {[%emt 0:02:30]} Bxb5 {[%emt 0:00:41]} 23. Rxb5 {[%emt 0:00:25]} Rb8 {[%emt 0:01:26]} 24. Qe2 {[%emt 0:27:24]} Qc7 {[%emt 0:01:43]} 25. g3 {[%emt 0:05:24]} Qc2 {[%emt 0:00:22]} 26. Rxb8 {[%emt 0:03:27]} Rxb8 {[%emt 0:00:07]} 27. Qa6 {[%emt 0:00:19]} Qc7 {[%emt 0:01:59]} 28. h4 {[%emt 0:02:41]} Rb6 {[%emt 0:01:30]} 29. Qxa5 {[%emt 0:02:43]} Bb4 {[%emt 0:00:50]} 30. Qa8+ {[%emt 0:00:11]} Rb8 {[%emt 0:00:22]} 31. Qa6 {[%emt 0:00:15]} Bxd2 {[%emt 0:00:15]} 32. Qxe6+ {[%emt 0:00:07]} Qf7 {[%emt 0:00:06]} 33. Qg4 {[%emt 0:01:18]} Rf8 {[%emt 0:00:35]} 34. Qe2 {[%emt 0:00:09]} Ba5 {[%emt 0:01:05]} 35. Rb1 {[%emt 0:02:11]} Rd8 {[%emt 0:01:24]} 36. Rb5 {[%emt 0:00:38]} Qa7 {[%emt 0:00:39]} 37. Qa2 {[%emt 0:00:50]} Qa8 {[%emt 0:00:38]} 38. Qb3 {[%emt 0:00:51]} Bc7 {[%emt 0:00:45]} 39. Kg2 {[%emt 0:02:17]} Rb8 {[%emt 0:00:48]} 40. Qxd5+ {[%emt 0:00:36]} Qxd5 {[%emt 0:00:01]} 41. Rxd5 {[%emt 0:00:15]} Rb4 {[%emt 0:00:27]} 42. Rd7 {[%emt 0:00:23]} Ba5 {[%emt 0:00:24]} 43. Re7 {[%emt 0:00:17]} Rxa4 {[%emt 0:00:08]} 44. Rxe4 {[%emt 0:00:06]} Kf7 {[%emt 0:02:05]} 45. Rf4+ {[%emt 0:01:05]} Ke7 {[%emt 0:00:00]} 46. Re4+ {[%emt 0:03:38]} Kf7 {[%emt 0:00:00]} 47. Rf4+ {[%emt 0:01:55]} Ke7 {[%emt 0:00:00]} 48. h5 {[%emt 0:01:32]} g5 {[%emt 0:00:53]} 49. Rf5 {[%emt 0:00:33]} h6 {[%emt 0:00:20]} 50. g4 {[%emt 0:01:26]} Bc7 {[%emt 0:00:08]} 51. Kf3 {[%emt 0:00:18]} Rb4 {[%emt 0:01:01]} 52. Ke4 {[%emt 0:00:10]} Ra4 {[%emt 0:01:38]} 53. Rc5 {[%emt 0:00:23]} Bd6 {[%emt 0:00:00]} 54. Rb5 {[%emt 0:00:04]} Ke6 {[%emt 0:00:14]} 55. Rb7 {[%emt 0:00:13]} Be7 {[%emt 0:00:10]} 56. Rb8 {[%emt 0:01:09]} Bf6 {[%emt 0:00:59]} 57. Rb6+ {[%emt 0:00:20]} Kf7 {[%emt 0:00:20]} 58. f3 {[%emt 0:00:18]} Bg7 {[%emt 0:00:42]} 59. Rc6 {[%emt 0:00:36]} Rb4 {[%emt 0:00:24]} 60. Kf5 {[%emt 0:00:37]} Rb3 {[%emt 0:00:14]} 61. Rc7+ {[%emt 0:00:07]} Kg8 {[%emt 0:00:08]} 62. Ke4 {[%emt 0:01:03]} Rb4 {[%emt 0:00:40]} 63. Rd7 {[%emt 0:04:00]} Ra4 {[%emt 0:00:14]} 64. f4 {[%emt 0:00:22]} gxf4 {[%emt 0:00:12]} 65. exf4 {[%emt 0:00:46]} Rb4 {[%emt 0:00:57]} 66. g5 {[%emt 0:00:15]} hxg5 {[%emt 0:00:17]} 67. fxg5 {[%emt 0:00:07]} Rb1 {[%emt 0:00:31]} 68. Kf5 {[%emt 0:01:13]} Rb6 {[%emt 0:01:24]} 69. d5 {[%emt 0:00:37]} Bf8 {[%emt 0:00:18]} 70. Rd8 {[%emt 0:01:14]} Kf7 {[%emt 0:00:12]} 71. Rd7+ {[%emt 0:00:48]} Kg8 {[%emt 0:00:58]} 72. h6 {[%emt 0:00:24]} Bxh6 {[%emt 0:00:26]} 73. gxh6 {[%emt 0:00:17]} Rxh6 {[%emt 0:00:03]} 74. Re7 {[%emt 0:00:19]} Kf8 {[%emt 0:00:42]} 75. Re6 {[%emt 0:00:21]} Rh1 {[%emt 0:00:41]} 76. Ke5 {[%emt 0:00:53]} Re1+ {[%emt 0:00:34]} 77. Kd6 {[%emt 0:00:02]} Rd1 {[%emt 0:00:19]} 78. Kc6 {[%emt 0:01:19]} Kf7 {[%emt 0:01:21]} 79. Re2 {[%emt 0:00:16]} Rc1+ {[%emt 0:00:00]} 80. Kd7 {[%emt 0:00:03]} Rd1 {[%emt 0:00:00]} 81. Rf2+ {[%emt 0:00:02]} Kg7 {[%emt 0:00:00]} 82. d6 {[%emt 0:00:05]} Rd3 {[%emt 0:00:21]} 83. Ke7 {[%emt 0:00:27]} Re3+ {[%emt 0:00:09]} 84. Kd8 {[%emt 0:00:03]} Rd3 {[%emt 0:00:07]} 85. d7 {[%emt 0:00:04]} Rd1 {[%emt 0:00:08]} 86. Rc2 {[%emt 0:00:34]} Kf7 {[%emt 0:00:10]} 87. Kc8 {[%emt 0:00:14]} Ke7 {[%emt 0:00:59]} 88. Re2+ {[%emt 0:00:14]} 1-0

[Event "Elegant 1st Division League 2024"]
[Site "Dhaka"]
[Date "2024.07.17"]
[Round "7.11"]
[White "Saparya Ghosh"]
[Black "Tajane Ganesh"]
[Result "1/2-1/2"]
[Annotator "NA RC"]
[ECO "A59"]
[WhiteElo "1833"]
[BlackElo "1772"]
[PlyCount "98"]
[EventDate "2024.07.10"]
[EventType "team-tourn"]
[EventCountry "BAN"]
[SourceTitle "playchess.com"]
[Source "ChessBase"]
[SourceQuality "1"]
[TimeControl "5400+30"]

1. d4 {[%emt 0:00:18]} Nf6 {[%emt 0:00:03]} 2. c4 {[%emt 0:00:08]} c5 {[%emt 0:00:06]} 3. d5 {[%emt 0:00:06]} b5 {[%emt 0:00:06]} 4. cxb5 {[%emt 0:00:05]} a6 {[%emt 0:00:04]} 5. bxa6 {[%emt 0:00:08]} g6 {[%emt 0:00:07]} 6. Nc3 {[%emt 0:00:06]} Bxa6 {[%emt 0:00:06]} 7. e4 {[%emt 0:00:05]} Bxf1 {[%emt 0:00:09]} 8. Kxf1 {[%emt 0:00:04]} d6 {[%emt 0:00:08]} 9. Nf3 {[%emt 0:00:14]} Bg7 {[%emt 0:00:02]} 10. g3 {[%emt 0:00:11]} O-O {[%emt 0:00:03]} 11. Kg2 {[%emt 0:00:08]} Nbd7 {[%emt 0:00:05]} 12. a4 {[%emt 0:00:55]} Qb6 $16 {[%emt 0:02:02]} 13. Nd2 {[%emt 0:05:10]} Ne8 {[%emt 0:03:28]} 14. Nb5 {[%emt 0:03:10]} Nc7 {[%emt 0:07:05]} 15. Nc4 {[%emt 0:01:13]} Qb7 {[%emt 0:00:18]} 16. Nxc7 {[%emt 0:01:28]} Qxc7 {[%emt 0:00:01]} 17. Bd2 {[%emt 0:09:16]} Ne5 {[%emt 0:03:40]} 18. Nxe5 {[%emt 0:02:13]} Bxe5 {[%emt 0:00:03]} 19. Bc3 {[%emt 0:03:57]} Bxc3 {[%emt 0:49:06]} 20. bxc3 {[%emt 0:00:02]} Rfb8 {[%emt 0:00:39]} 21. h4 {[%emt 0:02:37]} h6 {[%emt 0:11:13]} 22. Qd2 {[%emt 0:02:14]} h5 {[%emt 0:02:07]} 23. Qg5 {[%emt 0:05:04]} Qd7 {[%emt 0:01:45]} 24. e5 {[%emt 0:07:19]} dxe5 {[%emt 0:05:01]} 25. Qxe5 {[%emt 0:01:57]} Rb7 {[%emt 0:01:38]} 26. a5 {[%emt 0:10:56]} c4 {[%emt 0:05:47]} 27. Rhb1 {[%emt 0:05:56]} Rb5 {[%emt 0:04:52]} 28. Rxb5 {[%emt 0:04:49]} Qxb5 {[%emt 0:00:02]} 29. a6 {[%emt 0:00:31]} Ra7 {[%emt 0:02:58]} 30. Ra4 {[%emt 0:02:16]} Kh7 {[%emt 0:01:56]} 31. Qd4 {[%emt 0:08:24]} Rxa6 {[%emt 0:00:30]} 32. Rxc4 {[%emt 0:01:31]} Ra5 {[%emt 0:00:40]} 33. Rc7 {[%emt 0:03:53]} Ra1 {[%emt 0:00:26]} 34. Rxe7 {[%emt 0:04:43]} Qf1+ {[%emt 0:00:26]} 35. Kf3 {[%emt 0:00:02]} Qh1+ {[%emt 0:00:26]} 36. Kf4 {[%emt 0:00:13]} Qc1+ {[%emt 0:00:15]} 37. Qe3 {[%emt 0:01:27]} Ra4+ {[%emt 0:00:32]} 38. Ke5 {[%emt 0:11:19]} Qb1 {[%emt 0:00:28]} 39. Rxf7+ {[%emt 0:00:12]} Kg8 {[%emt 0:00:09]} 40. Rf4 {[%emt 0:05:00]} Qb8+ {[%emt 0:00:31]} 41. Kf6 {[%emt 0:00:43]} Ra6+ {[%emt 0:00:59]} 42. Qe6+ {[%emt 0:00:52]} Rxe6+ {[%emt 0:00:35]} 43. dxe6 {[%emt 0:00:28]} Kh7 {[%emt 0:00:47]} 44. Kf7 {[%emt 0:00:32]} Qg8+ {[%emt 0:00:31]} 45. Ke7 {[%emt 0:00:02]} Qc8 {[%emt 0:00:32]} 46. Kf7 {[%emt 0:00:31]} Qg8+ {[%emt 0:00:03]} 47. Ke7 {[%emt 0:00:12]} Qc8 {[%emt 0:00:01]} 48. Kf7 {[%emt 0:01:01]} Qg8+ {[%emt 0:00:26]} 49. Ke7 {[%emt 0:00:05]} Qc8 {[%emt 0:00:25]} 1/2-1/2

[Event "Elegant 1st Division League 2024"]
[Site "Dhaka"]
[Date "2024.07.17"]
[Round "7.12"]
[White "Bhuiyan, Golam Mostafa"]
[Black "Ajraf, Anan"]
[Result "1-0"]
[Annotator "RC"]
[ECO "D93"]
[WhiteElo "2078"]
[BlackElo "1781"]
[PlyCount "63"]
[EventDate "2024.07.10"]
[EventType "team-tourn"]
[EventCountry "BAN"]
[SourceTitle "playchess.com"]
[Source "ChessBase"]
[SourceQuality "1"]
[TimeControl "5400+30"]

1. d4 {[%emt 0:00:05]} Nf6 {[%emt 0:00:12]} 2. c4 {[%emt 0:00:01]} g6 {[%emt 0:00:11]} 3. Nc3 {[%emt 0:00:01]} d5 {[%emt 0:00:12]} 4. Nf3 {[%emt 0:00:30]} Bg7 {[%emt 0:00:24]} 5. Bf4 {[%emt 0:00:38]} c6 {[%emt 0:03:51]} 6. e3 {[%emt 0:00:18]} O-O {[%emt 1:28:40]} 7. Bd3 {[%emt 0:01:09]} dxc4 {[%emt 0:00:00]} 8. Bxc4 {[%emt 0:00:04]} b5 {[%emt 0:00:00]} 9. Bd3 {[%emt 0:02:27]} Nbd7 {[%emt 0:00:00]} 10. h3 {[%emt 0:00:20]} Nb6 {[%emt 0:00:00]} 11. O-O {[%emt 0:00:16]} Be6 {[%emt 0:00:00]} 12. a3 {[%emt 0:00:40]} Bc4 {[%emt 0:00:00]} 13. Ne5 {[%emt 0:00:21]} Bxd3 {[%emt 0:00:00]} 14. Qxd3 {[%emt 0:00:54]} Rc8 {[%emt 0:00:00]} 15. Rad1 {[%emt 0:04:05]} Nfd5 {[%emt 0:00:00]} 16. Bg3 {[%emt 0:00:27]} Nxc3 {[%emt 0:00:00]} 17. bxc3 {[%emt 0:00:05]} Bxe5 {[%emt 0:00:00]} 18. Bxe5 {[%emt 0:05:16]} Nc4 {[%emt 0:00:00]} 19. Qe2 {[%emt 0:01:51]} Qa5 {[%emt 0:00:00]} 20. Bf4 {[%emt 0:20:40]} Qxc3 {[%emt 0:00:00]} 21. Ra1 {[%emt 0:01:05]} Nxa3 {[%emt 0:00:00]} 22. Rfc1 {[%emt 0:11:14]} Qa5 {[%emt 0:00:00]} 23. Bh6 {[%emt 0:15:06]} Rfe8 {[%emt 0:00:00]} 24. d5 {[%emt 0:00:20]} cxd5 {[%emt 0:00:00]} 25. Qb2 {[%emt 0:07:42]} Rxc1+ {[%emt 0:00:00]} 26. Rxc1 {[%emt 0:00:32]} f6 {[%emt 0:00:00]} 27. Qd4 {[%emt 0:02:50]} Rd8 {[%emt 0:00:00]} 28. Qc5 {[%emt 0:03:50]} Rd7 {[%emt 0:02:04]} 29. Qc6 {[%emt 0:02:40]} Qd8 {[%emt 0:01:07]} 30. Qe6+ {[%emt 0:00:02]} Kh8 {[%emt 0:00:16]} 31. Qf7 {[%emt 0:00:02]} Qg8 {[%emt 0:07:18]} 32. Rc8 {[%emt 0:00:32]} 1-0

[Event "Elegant 1st Division League 2024"]
[Site "Dhaka"]
[Date "2024.07.17"]
[Round "7.13"]
[White "Islam, Sheik   Khairul"]
[Black "Uddipan Roy"]
[Result "0-1"]
[Annotator "RC"]
[ECO "A38"]
[WhiteElo "1948"]
[BlackElo "1967"]
[PlyCount "46"]
[EventDate "2024.07.10"]
[EventType "team-tourn"]
[EventCountry "BAN"]
[SourceTitle "playchess.com"]
[Source "ChessBase"]
[SourceQuality "1"]
[TimeControl "5400+30"]

1. c4 {[%emt 0:02:19]} Nf6 {[%emt 0:00:11]} 2. Nc3 {[%emt 0:00:09]} g6 {[%emt 0:00:04]} 3. Nf3 {[%emt 0:00:32]} Bg7 {[%emt 0:00:08]} 4. g3 {[%emt 0:01:14]} O-O {[%emt 0:00:18]} 5. Bg2 {[%emt 0:00:03]} c5 {[%emt 0:02:11]} 6. e4 {[%emt 0:02:52]} Nc6 {[%emt 0:01:14]} 7. O-O {[%emt 0:00:56]} d6 {[%emt 0:00:23]} 8. h3 {[%emt 0:00:48]} Ne8 {[%emt 0:00:04]} 9. d3 {[%emt 0:00:34]} Nc7 {[%emt 0:00:13]} 10. Rb1 {[%emt 0:00:35]} Rb8 {[%emt 0:00:16]} 11. a3 {[%emt 0:02:43]} b5 {[%emt 0:07:27]} 12. Nd5 {[%emt 0:04:27]} bxc4 {[%emt 0:14:43]} 13. dxc4 {[%emt 0:00:17]} Na5 {[%emt 0:01:26]} 14. Nd2 {[%emt 0:02:48]} Nxd5 15. cxd5 {[%emt 0:04:31]} Ba6 {[%emt 0:03:43]} 16. Qc2 {[%emt 0:14:55]} Bxf1 {[%emt 0:04:06]} 17. Bxf1 {[%emt 0:01:32]} c4 {[%emt 0:05:59]} 18. Be2 {[%emt 0:03:39]} Qb6 {[%emt 0:03:45]} 19. Nf1 {[%emt 0:00:36]} Rfc8 {[%emt 0:01:40]} 20. Kg2 {[%emt 0:11:25]} Qb3 {[%emt 0:00:56]} 21. Qd2 {[%emt 0:10:13]} c3 {[%emt 0:00:27]} 22. Qg5 {[%emt 0:03:17]} c2 {[%emt 0:00:26]} 23. Ra1 {[%emt 0:08:33]} Bxb2 {[%emt 0:00:49]} 0-1